[Event "10th Floripa Open 2024"]
[Site "Florianopolis"]
[Date "2024.01.26"]
[Round "7.1"]
[White "Tari, Aryan"]
[Black "Fier, Alexandr"]
[Result "1-0"]
[ECO "B30"]
[WhiteElo "2623"]
[BlackElo "2549"]
[Annotator "TA"]
[PlyCount "103"]
[EventDate "2024.01.10"]
[EventType "swiss"]
[EventCountry "BRA"]
[SourceTitle "playchess.com"]
[Source "ChessBase"]
[SourceQuality "1"]
[TimeControl "5400+30"]

{[%evp 25,103,0,0,0,14,0,0,0,0,0,20,19,35,45,37,37,76,58,93,95,103,102,99,83,95,98,113,43,126,126,289,167,162,155,158,147,170,170,202,193,283,199,237,218,207,202,282,281,262,294,297,293,275,290,283,250,340,329,329,326,463,443,428,462,470,459,438,430,385,590,610,625,652,650,710,703,29976,29960,2290,2202]} 1. e4 {[%emt 1:31:00]} c5 {[%emt 0:01:19]} 2. Nf3 {[%emt 0:00:00]} Nc6 {[%emt 0:00:03]} 3. Bb5 {[%emt 0:00:00]} e6 {[%emt 0:00:07]} 4. O-O {[%emt 0:00:00]} Nge7 {[%emt 0:00:11]} 5. d4 {[%emt 0:00:00]} cxd4 {[%emt 0:00:18]} 6. Nxd4 {[%emt 0:00:00]} Ng6 {[%emt 0:00:30]} 7. Be3 {[%emt 0:00:00]} Be7 {[%emt 0:00:06]} 8. c3 {[%emt 0:00:00]} O-O {[%emt 0:00:06]} 9. a4 {[%emt 0:00:00]} Nxd4 {[%emt 0:03:12]} 10. cxd4 {[%emt 0:00:00]} d5 {[%emt 0:00:04]} 11. e5 {[%emt 0:00:00]} Nh4 {[%emt 0:00:03]} 12. Nc3 {[%emt 0:00:00]} Nf5 {[%emt 0:00:08]} 13. Ne2 {[%emt 0:00:00]} Nxe3 {[%emt 0:04:42]} 14. fxe3 {[%emt 0:00:00]} f6 {[%emt 0:00:03]} 15. Qc2 {[%emt 0:00:00]} Bd7 {[%emt 0:06:23]} 16. Bd3 {[%emt 0:00:00]} f5 {[%emt 0:00:04]} 17. g3 {[%emt 0:00:00]} Rc8 {[%emt 0:02:59]} 18. Qb3 {[%emt 0:00:00]} Qb6 {[%emt 0:07:43]} 19. Qxb6 {[%emt 0:00:00]} axb6 {[%emt 0:00:04]} 20. h4 {[%emt 0:00:00]} Bb4 {[%emt 0:01:26]} 21. Nf4 {[%emt 0:00:00]} Kf7 {[%emt 0:07:13]} 22. g4 {[%emt 0:00:00]} g6 {[%emt 0:00:04]} 23. h5 {[%emt 0:00:00]} Rg8 {[%emt 0:03:50]} 24. Kf2 {[%emt 0:00:00]} g5 {[%emt 0:09:34]} 25. Ne2 {[%emt 0:00:00]} Ke7 {[%emt 0:03:21]} 26. Ng3 {[%emt 0:00:00]} (26. Kg2 $16) 26... f4 {[%emt 0:01:28]} (26... Rcf8 $1 $14) 27. Ne2 $16 {[%emt 0:00:00]} f3 $2 {[%emt 0:13:02]} (27... fxe3+ $16 28. Kxe3 h6) 28. Ng1 {[%emt 0:00:00]} (28. Kxf3 Rgf8+ 29. Kg2 h6 $16) (28. Nc1 $142) 28... h6 $18 {[%emt 0:00:30]} 29. Nxf3 {[%emt 0:00:00]} Ra8 {[%emt 0:06:09]} 30. b3 {[%emt 0:00:00]} Rac8 {[%emt 0:00:11]} 31. Ke2 {[%emt 0:00:00]} Rc3 {[%emt 0:02:31]} 32. Nd2 {[%emt 0:00:00]} b5 {[%emt 0:03:31]} (32... Be8 {was worth a try.} 33. Rf6 Rh8) 33. a5 {[%emt 0:00:00]} (33. axb5 Rgc8 34. Ra4 Rxd3 35. Rxb4 Rcc3 $14) (33. Bxb5 Rc2 34. Rfd1 Rgc8 $11) 33... Rcc8 {[%emt 0:01:58]} 34. Rf6 {[%emt 0:00:00]} Rh8 {[%emt 0:00:04]} 35. a6 {[%emt 0:00:00]} bxa6 {[%emt 0:00:04]} 36. Rxa6 {[%emt 0:00:00]} Ra8 {[%emt 0:00:04]} 37. Rxa8 {[%emt 0:02:55]} Rxa8 {[%emt 0:00:04]} 38. Nf1 {[%emt 0:00:52]} (38. Rxh6 Ra2 $18) 38... Rh8 {[%emt 0:03:11]} 39. Ng3 {[%emt 0:02:32]} Bc3 {[%emt 0:00:08]} 40. Bc2 {[%emt 0:02:44]} b4 {[%emt 0:02:52]} 41. Bd3 {[%emt 0:00:08]} Bb2 {[%emt 0:00:02]} 42. Rg6 {[%emt 0:00:46]} Kf7 {[%emt 0:01:00]} (42... Kf8 $142 43. Kd2 Kf7) 43. Nf5 $18 {[%emt 0:00:39]} exf5 {[%emt 0:00:59]} 44. gxf5 {[%emt 0:00:01]} Be8 {[%emt 0:03:18]} 45. Rb6 {[%emt 0:01:09]} Ke7 {[%emt 0:00:39]} 46. f6+ {[%emt 0:01:45]} (46. Rxb4 Bxh5+ 47. Kf2 Kd7 $18) 46... Kd7 {[%emt 0:00:03]} 47. Bg6 {[%emt 0:01:45]} ({Inferior is} 47. Rxb4 Kc7 $11 (47... Bxh5+ 48. Kf2 $16)) 47... Kc7 {[%emt 0:00:04]} 48. Re6 {[%emt 0:00:48]} ({And not} 48. Rxb4 Ba3 49. Bxe8 (49. f7 $2 Bd7 $19) 49... Bxb4 $15) 48... Bb5+ {[%emt 0:00:33]} 49. Bd3 {[%emt 0:00:52]} Bxd3+ {[%emt 0:02:39]} 50. Kxd3 {[%emt 0:00:02]} Rh7 {[%emt 0:00:05]} 51. Ra6 {[%emt 0:00:25]} Kb7 {[%emt 0:00:04]} 52. e6 {[%emt 0:00:23]} 1-0

[Event "10th Floripa Open 2024"]
[Site "Florianopolis"]
[Date "2024.01.26"]
[Round "7.2"]
[White "El Debs, Felipe de Cresce"]
[Black "Cuenca Jimenez, Jose Fernando"]
[Result "1/2-1/2"]
[ECO "D31"]
[WhiteElo "2527"]
[BlackElo "2514"]
[Annotator "RC"]
[PlyCount "134"]
[EventDate "2024.01.10"]
[EventType "swiss"]
[EventCountry "BRA"]
[SourceTitle "playchess.com"]
[Source "ChessBase"]
[SourceQuality "1"]
[TimeControl "5400+30"]

1. d4 {[%emt 0:00:06]} d5 {[%emt 0:00:12]} 2. c4 {[%emt 0:00:09]} e6 {[%emt 0:00:05]} 3. Nc3 {[%emt 0:00:16]} Be7 {[%emt 0:00:10]} 4. cxd5 {[%emt 0:00:14]} exd5 {[%emt 0:00:04]} 5. Bf4 {[%emt 0:00:08]} c6 {[%emt 0:00:30]} 6. e3 {[%emt 0:00:09]} Bf5 {[%emt 0:00:29]} 7. g4 {[%emt 0:00:17]} Be6 {[%emt 0:00:37]} 8. Be2 {[%emt 0:00:10]} Nd7 {[%emt 0:07:06]} 9. h4 {[%emt 0:01:02]} Nb6 {[%emt 0:16:57]} 10. h5 {[%emt 0:01:24]} h6 {[%emt 0:04:42]} 11. f3 {[%emt 0:06:33]} Bd6 {[%emt 0:07:37]} 12. Bd3 {[%emt 0:04:40]} Bxf4 {[%emt 0:08:08]} 13. exf4 {[%emt 0:00:06]} Qd6 {[%emt 0:00:41]} 14. Nge2 {[%emt 0:07:02]} Ne7 {[%emt 0:00:24]} 15. Qc2 {[%emt 0:02:51]} f6 {[%emt 0:04:44]} 16. O-O-O {[%emt 0:07:10]} Nd7 {[%emt 0:02:04]} 17. Kb1 {[%emt 0:00:46]} O-O {[%emt 0:02:02]} 18. Rde1 {[%emt 0:12:21]} Rae8 {[%emt 0:07:16]} 19. Bh7+ {[%emt 0:06:55]} Kh8 {[%emt 0:00:10]} 20. Bg6 {[%emt 0:00:06]} Bf7 {[%emt 0:09:59]} 21. f5 {[%emt 0:02:07]} Nc8 {[%emt 0:06:19]} 22. Qc1 {[%emt 0:00:34]} Kg8 {[%emt 0:07:48]} 23. Nf4 {[%emt 0:01:03]} Rxe1 {[%emt 0:00:10]} 24. Rxe1 {[%emt 0:00:30]} Rd8 {[%emt 0:00:17]} 25. Bxf7+ {[%emt 0:05:38]} Kxf7 {[%emt 0:00:01]} 26. Re6 {[%emt 0:00:09]} Qb8 {[%emt 0:01:35]} 27. Qe3 {[%emt 0:00:52]} Nf8 {[%emt 0:00:05]} 28. Ng6 {[%emt 0:00:55]} Qc7 {[%emt 0:04:11]} 29. Ne2 {[%emt 0:00:39]} Kg8 {[%emt 0:00:20]} 30. Nxf8 {[%emt 0:03:33]} Kxf8 {[%emt 0:02:53]} 31. Nf4 {[%emt 0:00:13]} Qd7 {[%emt 0:00:03]} 32. Nd3 {[%emt 0:17:20]} b6 {[%emt 0:03:55]} 33. Nf4 {[%emt 0:10:47]} Kf7 {[%emt 0:00:03]} 34. a3 {[%emt 0:01:25]} Nd6 {[%emt 0:00:22]} 35. Ka2 {[%emt 0:01:08]} Nb5 {[%emt 0:01:13]} 36. a4 {[%emt 0:01:20]} Nc7 {[%emt 0:02:12]} 37. Qa3 {[%emt 0:02:29]} c5 {[%emt 0:00:01]} 38. dxc5 {[%emt 0:00:30]} bxc5 {[%emt 0:00:00]} 39. Re1 {[%emt 0:01:22]} Re8 {[%emt 0:01:46]} 40. Rxe8 {[%emt 0:01:55]} Qxe8 {[%emt 0:00:03]} 41. Ne6 {[%emt 0:01:44]} Nxe6 {[%emt 0:00:30]} 42. fxe6+ {[%emt 0:00:03]} Kxe6 {[%emt 0:00:19]} 43. Qe3+ {[%emt 0:00:05]} Kf7 {[%emt 0:00:28]} 44. Qxc5 {[%emt 0:00:02]} Qxa4+ {[%emt 0:00:03]} 45. Kb1 {[%emt 0:00:05]} Qd1+ {[%emt 0:03:05]} 46. Ka2 {[%emt 0:00:11]} Qa4+ {[%emt 0:00:47]} 47. Kb1 {[%emt 0:00:05]} Qd7 {[%emt 0:00:13]} 48. Qd4 {[%emt 0:00:20]} a6 {[%emt 0:00:58]} 49. Qb6 {[%emt 0:00:58]} Qe6 {[%emt 0:00:35]} 50. Qa7+ {[%emt 0:00:20]} Kg8 {[%emt 0:00:07]} 51. Qd4 {[%emt 0:00:37]} Qe1+ {[%emt 0:00:23]} 52. Ka2 {[%emt 0:00:11]} Qa5+ {[%emt 0:00:01]} 53. Kb3 {[%emt 0:01:02]} Qb5+ {[%emt 0:00:05]} 54. Kc3 {[%emt 0:00:58]} a5 {[%emt 0:00:01]} 55. b3 {[%emt 0:00:22]} Qc6+ {[%emt 0:00:35]} 56. Kb2 {[%emt 0:00:14]} Qe6 {[%emt 0:01:19]} 57. Qd3 {[%emt 0:03:02]} Qe5+ {[%emt 0:00:33]} 58. Kc2 {[%emt 0:00:39]} Qc7+ {[%emt 0:01:17]} 59. Kd1 {[%emt 0:00:57]} Qc5 {[%emt 0:00:29]} 60. Qf5 {[%emt 0:00:20]} Qc6 {[%emt 0:00:29]} 61. Kd2 {[%emt 0:00:19]} Kf7 {[%emt 0:00:04]} 62. Qg6+ {[%emt 0:00:06]} Kf8 {[%emt 0:00:06]} 63. Qf5 {[%emt 0:00:05]} Qb5 {[%emt 0:02:19]} 64. Qc8+ {[%emt 0:00:50]} Kf7 {[%emt 0:00:00]} 65. Qc7+ {[%emt 0:00:06]} Kg8 {[%emt 0:00:21]} 66. Qc8+ {[%emt 0:00:05]} Kf7 {[%emt 0:00:02]} 67. Qc7+ {[%emt 0:00:03]} Kg8 {[%emt 0:00:52]} 1/2-1/2

[Event "10th Floripa Open 2024"]
[Site "Florianopolis"]
[Date "2024.01.26"]
[Round "7.3"]
[White "Salinas Herrera, Pablo"]
[Black "Filgueiras, Nathan Felipe"]
[Result "1-0"]
[ECO "C55"]
[WhiteElo "2477"]
[BlackElo "2321"]
[Annotator "TA"]
[PlyCount "101"]
[EventDate "2024.01.10"]
[EventType "swiss"]
[EventCountry "BRA"]
[SourceTitle "playchess.com"]
[Source "ChessBase"]
[SourceQuality "1"]
[TimeControl "5400+30"]

{[%evp 16,101,29,33,38,42,56,43,58,25,55,0,16,-19,36,0,0,0,-12,-14,-8,-19,0,-8,0,-40,-9,-15,-17,-45,27,21,21,29,96,115,161,115,110,72,120,86,131,81,177,167,174,179,179,179,179,168,191,189,202,187,289,299,282,236,240,243,248,254,253,252,269,276,274,272,382,344,376,287,519,497,506,450,435,417,1006,934,1131,1124,1117,1075,1117,1117]} 1. e4 {[%emt 0:00:02]} e5 {[%emt 0:04:56]} 2. Nf3 {[%emt 0:01:11]} Nc6 {[%emt 0:00:06]} 3. Bc4 {[%emt 0:00:42]} Nf6 {[%emt 0:00:07]} 4. d3 {[%emt 0:00:04]} h6 {[%emt 0:00:55]} 5. Nc3 {[%emt 0:00:19]} d6 {[%emt 0:03:01]} 6. a4 {[%emt 0:04:46] C55: Two Knights: 4 d3, 4 d4 exd4 5 e5 and Max Lange Attack.} g5 {[%emt 0:05:16]} 7. a5 {[%emt 0:17:50]} a6 {[%emt 0:03:59]} 8. Be3 $146 {[%emt 0:00:45]} ({Predecessor:} 8. h3 Bg7 9. Nh2 Ne7 10. Ng4 c6 11. Be3 d5 12. Bb6 Qd6 13. Bb3 Be6 14. Nxf6+ Bxf6 {½-½ Idani,P (2615)-Pranav,V (2611) Titled Tuesday intern op 14th Nov Early blitz 2023 (10)}) 8... Bg7 {[%emt 0:02:45]} 9. h4 {[%emt 0:10:22]} g4 {[%emt 0:09:01]} 10. Nh2 {[%emt 0:00:12]} Nd4 {[%emt 0:08:38]} 11. Nf1 {[%emt 0:09:25]} Be6 {[%emt 0:12:06]} 12. Ng3 {[%emt 0:04:39]} Qd7 {[%emt 0:03:00]} 13. Ba2 {[%emt 0:05:50]} ({White should play} 13. Rb1 $14) 13... O-O-O {[%emt 0:08:26]} 14. Nce2 {[%emt 0:23:35]} Ng8 {[%emt 0:06:06]} (14... Bxa2 $11 15. Rxa2 d5) 15. Nh5 {[%emt 0:01:49]} Bxa2 {[%emt 0:00:54]} 16. Bxd4 {[%emt 0:02:11]} f5 $1 {[%emt 0:02:38]} 17. Bc3 {[%emt 0:13:13]} Be6 {[%emt 0:01:15]} 18. exf5 {[%emt 0:00:50]} Bxf5 {[%emt 0:01:44]} 19. Neg3 {[%emt 0:00:15]} Be6 {[%emt 0:01:02]} 20. d4 {[%emt 0:00:28]} Bc4 {[%emt 0:04:31]} 21. Nxg7 {[%emt 0:01:01]} Qxg7 {[%emt 0:00:17]} 22. Nf5 {[%emt 0:00:09]} Qg6 {[%emt 0:02:13]} (22... Qf7 $15 23. Ne3 Nf6 24. Nxc4 Qxc4 25. dxe5 Qe4+ 26. Qe2 dxe5 27. Qxe4 Nxe4) 23. Ne3 $11 {[%emt 0:00:05]} Be6 $1 {[%emt 0:00:11]} 24. dxe5 {[%emt 0:01:09]} d5 {[%emt 0:02:09] [#]} (24... dxe5 $11 25. Qe2 Ne7) 25. Qd4 $1 $16 {[%emt 0:00:13]} Kb8 {[%emt 0:05:26]} (25... Ne7 $16 26. Qa7 Rhf8) 26. Bb4 {[%emt 0:00:09]} (26. Qc5 $18) 26... Rh7 $16 {[%emt 0:02:33]} 27. O-O-O {[%emt 0:00:06]} h5 {[%emt 0:00:39]} ({Black should try} 27... Ne7) 28. Rd2 {[%emt 0:00:06]} Rhd7 {[%emt 0:01:05]} 29. Bc5 {[%emt 0:01:18]} (29. Rhd1 $142) 29... Qe4 {[%emt 0:03:36]} (29... Ne7 $16 {keeps fighting.}) 30. Qxe4 $18 {[%emt 0:01:44]} dxe4 {[%emt 0:00:03]} 31. Rxd7 {[%emt 0:00:07]} Rxd7 {[%emt 0:07:22] [#]} 32. Rd1 $1 {[%emt 0:01:16]} Rxd1+ {[%emt 0:00:00]} 33. Nxd1 {[%emt 0:00:26]} g3 {[%emt 0:00:00]} 34. fxg3 {[%emt 0:00:03]} Nh6 {[%emt 0:00:00]} 35. Nc3 {[%emt 0:00:12]} Bf5 {[%emt 0:00:00]} (35... Ng4 {was necessary.} 36. Bd4 (36. Nxe4 Nxe5 37. Bd4 Ng4 $18) 36... Kc8 37. Nxe4 Bd5) 36. Nd5 $18 {[%emt 0:00:52]} Nf7 {[%emt 0:00:00]} 37. Nf4 {[%emt 0:00:39]} Nxe5 {[%emt 0:00:00]} 38. Nxh5 {[%emt 0:00:03]} Kc8 {[%emt 0:00:00]} 39. Bd4 {[%emt 0:01:06]} Ng4 {[%emt 0:00:30]} 40. Ng7 {[%emt 0:00:12]} Bh7 {[%emt 0:00:44]} 41. Ne6 {[%emt 0:00:05]} (41. Kd2 Kd7 42. Nh5 Ke7 $18) 41... Bf5 {[%emt 0:02:05]} 42. Nc5 {[%emt 0:02:01]} ({Don't play} 42. Ng7 Bd7 43. Kd2 Kd8 $18) 42... c6 {[%emt 0:00:45]} (42... Bg6 $142 43. Kd1 Nh6) 43. h5 $18 {[%emt 0:00:00]} Kc7 {[%emt 0:00:22]} 44. Bg7 {[%emt 0:00:00]} Kd6 $2 {[%emt 0:00:48]} (44... b6) 45. Nxb7+ $18 {[%emt 0:00:00]} Kd5 {[%emt 0:00:04]} 46. b3 {[%emt 0:00:00]} c5 {[%emt 0:00:34]} 47. h6 {[%emt 0:00:26]} Ne3 {[%emt 0:00:57]} (47... e3 $142 48. Kd1 Bg6) 48. c4+ $18 {[%emt 0:00:30]} Kc6 {[%emt 0:00:20]} 49. Nd8+ {[%emt 0:00:03]} Kd7 {[%emt 0:00:42]} 50. Nf7 {[%emt 0:00:04]} Nxg2 {[%emt 0:00:27]} 51. g4 {[%emt 0:00:05]} 1-0

[Event "10th Floripa Open 2024"]
[Site "Florianopolis"]
[Date "2024.01.26"]
[Round "7.4"]
[White "Menna Barreto, Felipe Kubiaki"]
[Black "Galego, Luis"]
[Result "1/2-1/2"]
[ECO "A54"]
[WhiteElo "2278"]
[BlackElo "2468"]
[Annotator "RC"]
[PlyCount "49"]
[EventDate "2024.01.10"]
[EventType "swiss"]
[EventCountry "BRA"]
[SourceTitle "playchess.com"]
[Source "ChessBase"]
[SourceQuality "1"]
[TimeControl "5400+30"]

1. Nf3 {[%emt 0:00:03]} Nf6 {[%emt 0:00:24]} 2. c4 {[%emt 0:00:41]} d6 {[%emt 0:00:06]} 3. d4 {[%emt 0:00:27]} Nbd7 {[%emt 0:00:54]} 4. Nc3 {[%emt 0:00:25]} e5 {[%emt 0:00:09]} 5. Bg5 {[%emt 0:01:52]} Be7 {[%emt 0:00:23]} 6. e3 {[%emt 0:00:17]} O-O {[%emt 0:04:07]} 7. Qc2 {[%emt 0:00:47]} Re8 {[%emt 0:07:41]} 8. dxe5 {[%emt 0:03:04]} dxe5 {[%emt 0:06:09]} 9. O-O-O {[%emt 0:00:47]} h6 {[%emt 0:10:33]} 10. Bh4 {[%emt 0:03:26]} Nh7 {[%emt 0:08:35]} 11. Bg3 {[%emt 0:01:36]} Bf6 {[%emt 0:02:18]} 12. c5 {[%emt 0:09:48]} c6 {[%emt 0:07:16]} 13. Ne4 {[%emt 0:05:26]} Qa5 {[%emt 0:01:04]} 14. Bc4 {[%emt 0:03:21]} Re7 {[%emt 0:00:53]} 15. Nd6 {[%emt 0:04:59]} Ndf8 {[%emt 0:03:20]} 16. Nxc8 {[%emt 0:20:58]} Rxc8 {[%emt 0:00:05]} 17. Nd2 {[%emt 0:00:40]} g6 {[%emt 0:15:11]} 18. Ne4 {[%emt 0:03:41]} Bg7 {[%emt 0:00:24]} 19. Bh4 {[%emt 0:04:55]} g5 {[%emt 0:01:48]} 20. Bg3 {[%emt 0:00:33]} Nf6 {[%emt 0:04:04]} 21. Nd6 {[%emt 0:13:38]} Rcc7 {[%emt 0:00:51]} 22. Nf5 {[%emt 0:02:59]} Re8 {[%emt 0:00:04]} 23. Nd6 {[%emt 0:00:30]} Ree7 {[%emt 0:00:04]} 24. Nf5 {[%emt 0:00:28]} Re8 {[%emt 0:00:05]} 25. Nd6 {[%emt 0:17:39]} 1/2-1/2

[Event "10th Floripa Open 2024"]
[Site "Florianopolis"]
[Date "2024.01.26"]
[Round "7.5"]
[White "Flores Quillas, Diego Saul Rodri"]
[Black "Diaz Villagran, Robert"]
[Result "1/2-1/2"]
[ECO "C84"]
[WhiteElo "2429"]
[BlackElo "2268"]
[Annotator "RC"]
[PlyCount "99"]
[EventDate "2024.01.10"]
[EventType "swiss"]
[EventCountry "BRA"]
[SourceTitle "playchess.com"]
[Source "ChessBase"]
[SourceQuality "1"]
[TimeControl "5400+30"]

1. e4 {[%emt 0:11:04]} e5 {[%emt 0:00:22]} 2. Nf3 {[%emt 0:00:06]} Nc6 {[%emt 0:00:07]} 3. Bb5 {[%emt 0:00:05]} a6 {[%emt 0:00:13]} 4. Ba4 {[%emt 0:00:15]} Nf6 {[%emt 0:00:32]} 5. d3 {[%emt 0:00:05]} b5 {[%emt 0:01:49]} 6. Bb3 {[%emt 0:00:05]} Be7 {[%emt 0:00:32]} 7. O-O {[%emt 0:00:53]} d6 {[%emt 0:00:10]} 8. a4 {[%emt 0:00:23]} Rb8 {[%emt 0:08:36]} 9. axb5 {[%emt 0:00:59]} axb5 {[%emt 0:00:02]} 10. h3 {[%emt 0:00:25]} O-O {[%emt 0:05:41]} 11. Nc3 {[%emt 0:07:34]} Be6 {[%emt 0:01:12]} 12. Nd5 {[%emt 0:00:21]} Bxd5 {[%emt 0:00:28]} 13. exd5 {[%emt 0:02:18]} Nd4 {[%emt 0:00:10]} 14. Nxd4 {[%emt 0:00:19]} exd4 {[%emt 0:00:02]} 15. c3 {[%emt 0:01:18]} Nd7 {[%emt 0:14:19]} 16. cxd4 {[%emt 0:00:22]} Ra8 {[%emt 0:00:39]} 17. Be3 {[%emt 0:04:15]} Rxa1 {[%emt 0:15:17]} 18. Qxa1 {[%emt 0:00:04]} f5 {[%emt 0:00:06]} 19. f4 {[%emt 0:00:31]} Bf6 {[%emt 0:02:22]} 20. Bf2 {[%emt 0:02:39]} Qa8 {[%emt 0:01:10]} 21. Qc1 {[%emt 0:01:33]} Qa7 {[%emt 0:03:05]} 22. Qe3 {[%emt 0:00:43]} Rf7 {[%emt 0:02:12]} 23. Kh2 {[%emt 0:08:00]} Nf8 {[%emt 0:09:52]} 24. Bg1 {[%emt 0:00:39]} Re7 {[%emt 0:00:11]} 25. Qf2 {[%emt 0:00:01]} Qa5 {[%emt 0:04:29]} 26. Bd1 {[%emt 0:04:27]} g6 {[%emt 0:04:28]} 27. Bf3 {[%emt 0:00:29]} h5 {[%emt 0:00:07]} 28. Rc1 {[%emt 0:04:05]} Qa7 {[%emt 0:00:59]} 29. b3 {[%emt 0:05:43]} h4 {[%emt 0:03:01]} 30. Qb2 {[%emt 0:00:18]} Nh7 {[%emt 0:02:31]} 31. Bf2 {[%emt 0:04:01]} Kf7 {[%emt 0:00:51]} 32. Ra1 {[%emt 0:01:23]} Qb8 {[%emt 0:00:07]} 33. Qc3 {[%emt 0:00:17]} Qh8 {[%emt 0:00:13]} 34. Ra7 {[%emt 0:00:24]} Qb8 {[%emt 0:01:26]} 35. Ra5 {[%emt 0:00:58]} g5 {[%emt 0:01:53]} 36. Bh5+ {[%emt 0:07:30]} Kg7 {[%emt 0:00:10]} 37. fxg5 {[%emt 0:01:30]} Bxg5 {[%emt 0:01:22]} 38. Qc6 {[%emt 0:01:23]} Qh8 {[%emt 0:02:35]} 39. Ra8 {[%emt 0:00:58]} Nf8 {[%emt 0:00:13]} 40. Bf3 {[%emt 0:00:31]} Bf4+ {[%emt 0:02:13]} 41. Kg1 {[%emt 0:00:05]} Kf7 {[%emt 0:01:59]} 42. Rc8 {[%emt 0:01:54]} Bg3 {[%emt 0:02:31]} 43. Rxc7 {[%emt 0:05:52]} Bxf2+ {[%emt 0:01:31]} 44. Kxf2 {[%emt 0:00:02]} Qxd4+ {[%emt 0:00:15]} 45. Kf1 {[%emt 0:00:03]} Qxd3+ {[%emt 0:03:03]} 46. Kg1 {[%emt 0:00:05]} Qe3+ {[%emt 0:03:43]} 47. Kh2 {[%emt 0:00:05]} Qe5+ {[%emt 0:00:06]} 48. Kh1 {[%emt 0:00:03]} Qe1+ {[%emt 0:03:45]} 49. Kh2 {[%emt 0:00:04]} Qe5+ {[%emt 0:01:35]} 50. Kh1 {[%emt 0:00:05]} 1/2-1/2

[Event "10th Floripa Open 2024"]
[Site "Florianopolis"]
[Date "2024.01.26"]
[Round "7.6"]
[White "Soriano Quispe, Ivan Excender"]
[Black "Haldorsen, Benjamin"]
[Result "0-1"]
[ECO "E94"]
[WhiteElo "2271"]
[BlackElo "2427"]
[Annotator "RC"]
[PlyCount "141"]
[EventDate "2024.01.10"]
[EventType "swiss"]
[EventCountry "BRA"]
[SourceTitle "playchess.com"]
[Source "ChessBase"]
[SourceQuality "1"]
[TimeControl "5400+30"]

1. d4 {[%emt 0:06:21]} Nf6 {[%emt 0:00:43]} 2. c4 {[%emt 0:00:08]} g6 {[%emt 0:00:18]} 3. Nc3 {[%emt 0:00:05]} Bg7 {[%emt 0:00:07]} 4. e4 {[%emt 0:00:12]} d6 {[%emt 0:00:08]} 5. Nf3 {[%emt 0:00:12]} O-O {[%emt 0:00:15]} 6. Be2 {[%emt 0:00:19]} e5 {[%emt 0:00:24]} 7. O-O {[%emt 0:02:46]} a5 {[%emt 0:00:12]} 8. dxe5 {[%emt 0:06:28]} dxe5 {[%emt 0:00:26]} 9. Bg5 {[%emt 0:03:21]} Nbd7 {[%emt 0:11:43]} 10. Qc2 {[%emt 0:04:17]} c6 {[%emt 0:04:57]} 11. Rad1 {[%emt 0:01:56]} h6 {[%emt 0:04:30]} 12. Bc1 {[%emt 0:01:53]} Qc7 {[%emt 0:02:25]} 13. Na4 {[%emt 0:03:08]} b6 {[%emt 0:23:20]} 14. c5 {[%emt 0:31:45]} b5 {[%emt 0:02:30]} 15. Nb6 {[%emt 0:00:02]} Nxb6 {[%emt 0:12:04]} 16. cxb6 {[%emt 0:00:01]} Qxb6 {[%emt 0:00:15]} 17. Nxe5 {[%emt 0:01:39]} c5 {[%emt 0:15:04]} 18. Be3 {[%emt 0:06:24]} Qe6 {[%emt 0:06:12]} 19. Nd3 {[%emt 0:01:45]} c4 {[%emt 0:03:23]} 20. Nc5 {[%emt 0:03:42]} Qe7 {[%emt 0:00:01]} 21. a4 {[%emt 0:12:38]} bxa4 {[%emt 0:04:17]} 22. Nxa4 {[%emt 0:06:31]} Qxe4 {[%emt 0:00:11]} 23. Qxe4 {[%emt 0:00:49]} Nxe4 {[%emt 0:00:05]} 24. Bxc4 {[%emt 0:00:19]} Ba6 {[%emt 0:03:15]} 25. Bxa6 {[%emt 0:00:23]} Rxa6 {[%emt 0:00:01]} 26. Rfe1 {[%emt 0:02:09]} Ng5 {[%emt 0:01:42]} 27. Nc5 {[%emt 0:00:22]} Rc6 {[%emt 0:00:35]} 28. b3 {[%emt 0:01:06]} Re8 {[%emt 0:02:05]} 29. Nb7 {[%emt 0:01:38]} Bc3 {[%emt 0:00:46]} 30. Rf1 {[%emt 0:01:01]} Rb8 {[%emt 0:00:56]} 31. Rd7 {[%emt 0:01:01]} Ne6 {[%emt 0:02:02]} 32. Rc1 {[%emt 0:00:34]} Nf8 {[%emt 0:00:52]} 33. Rd3 {[%emt 0:01:10]} Rxb7 {[%emt 0:00:39]} 34. Rdxc3 {[%emt 0:00:11]} Rxc3 {[%emt 0:00:17]} 35. Rxc3 {[%emt 0:00:01]} g5 {[%emt 0:00:21]} 36. h4 {[%emt 0:00:31]} Ne6 {[%emt 0:00:08]} 37. hxg5 {[%emt 0:00:28]} hxg5 {[%emt 0:00:05]} 38. g3 {[%emt 0:00:16]} Kg7 {[%emt 0:00:15]} 39. Rd3 {[%emt 0:00:06]} Rb5 {[%emt 0:00:42]} 40. Bd2 {[%emt 0:00:46]} Kg6 {[%emt 0:00:21]} 41. Rd6 {[%emt 0:00:39]} g4 {[%emt 0:00:58]} 42. Rd3 {[%emt 0:01:38]} Kf5 {[%emt 0:00:57]} 43. Kf1 {[%emt 0:00:39]} Nc5 {[%emt 0:00:42]} 44. Rd5+ {[%emt 0:00:20]} Ke4 {[%emt 0:00:08]} 45. Rg5 {[%emt 0:00:24]} f5 {[%emt 0:00:05]} 46. Rg8 {[%emt 0:00:27]} Nxb3 {[%emt 0:00:12]} 47. Bc3 {[%emt 0:00:21]} Kd3 {[%emt 0:00:28]} 48. Be1 {[%emt 0:00:54]} Nd2+ {[%emt 0:00:35]} 49. Kg2 {[%emt 0:00:01]} Nf3 {[%emt 0:01:03]} 50. Rd8+ {[%emt 0:00:02]} Kc4 {[%emt 0:00:57]} 51. Rc8+ {[%emt 0:00:17]} Kb3 {[%emt 0:00:12]} 52. Bc3 {[%emt 0:00:16]} a4 {[%emt 0:00:43]} 53. Bf6 {[%emt 0:00:15]} a3 {[%emt 0:00:40]} 54. Kf1 {[%emt 0:00:42]} Rb6 {[%emt 0:00:28]} 55. Bh8 {[%emt 0:00:23]} Re6 {[%emt 0:00:20]} 56. Rc1 {[%emt 0:01:21]} a2 {[%emt 0:00:49]} 57. Rc3+ {[%emt 0:00:21]} Kb4 {[%emt 0:00:12]} 58. Rc1 {[%emt 0:00:17]} Rh6 {[%emt 0:00:23]} 59. Ra1 {[%emt 0:01:22]} Rxh8 {[%emt 0:00:16]} 60. Rxa2 {[%emt 0:00:02]} Kc4 {[%emt 0:00:24]} 61. Ra4+ {[%emt 0:00:13]} Kd3 {[%emt 0:00:16]} 62. Ra3+ {[%emt 0:00:05]} Ke4 {[%emt 0:00:08]} 63. Ra4+ {[%emt 0:00:05]} Ke5 {[%emt 0:00:19]} 64. Ra5+ {[%emt 0:00:03]} Kf6 {[%emt 0:00:07]} 65. Ra4 {[%emt 0:00:10]} Rh1+ {[%emt 0:00:15]} 66. Ke2 {[%emt 0:00:02]} Re1+ {[%emt 0:00:09]} 67. Kd3 {[%emt 0:00:06]} Re6 {[%emt 0:00:04]} 68. Ra8 {[%emt 0:00:06]} Ng1 {[%emt 0:01:07]} 69. Ra7 {[%emt 0:00:20]} Nh3 {[%emt 0:00:41]} 70. Ra2 {[%emt 0:00:02]} f4 {[%emt 0:00:38]} 71. gxf4 {[%emt 0:00:20]} 0-1